[Event "Late-Titled-Tuesday-Blitz-July-09-2024"]
[Site "Chess.com"]
[Date "2024.07.09"]
[Round "4"]
[White "Walter_White_Poland"]
[Black "kkpanu9"]
[Result "1-0"]
[WhiteElo "2415"]
[BlackElo "2062"]
[TimeControl "180+1"]
[EndTime "14:39:06 PDT"]
[Termination "Walter_White_Poland won on time"]

1. e4 {[%clk 0:03:00.9]} 1... c5 {[%clk 0:02:59.9]} 2. Nf3 {[%clk 0:03:00.7]}
2... d6 {[%clk 0:03:00.3]} 3. d4 {[%clk 0:03:00.7]} 3... cxd4 {[%clk 0:03:01.2]}
4. Nxd4 {[%clk 0:03:00.9]} 4... Nf6 {[%clk 0:03:01.8]} 5. Nc3 {[%clk 0:03:01.3]}
5... g6 {[%clk 0:03:02.5]} 6. Be3 {[%clk 0:03:01.2]} 6... Bg7 {[%clk 0:03:03]}
7. f3 {[%clk 0:03:01.6]} 7... O-O {[%clk 0:03:03.3]} 8. Qd2 {[%clk 0:03:01.9]}
8... Nc6 {[%clk 0:03:03.6]} 9. O-O-O {[%clk 0:03:01.8]} 9... Bd7 {[%clk
0:03:03.2]} 10. g4 {[%clk 0:02:59.6]} 10... Rc8 {[%clk 0:03:02.8]} 11. h4 {[%clk
0:02:58.7]} 11... Ne5 {[%clk 0:03:02.4]} 12. h5 {[%clk 0:02:53]} 12... Qa5
{[%clk 0:03:01.8]} 13. Kb1 {[%clk 0:02:36.2]} 13... Nxf3 {[%clk 0:02:58.4]} 14.
Nxf3 {[%clk 0:02:35.4]} 14... Rxc3 {[%clk 0:02:57.4]} 15. Qxc3 {[%clk
0:02:34.7]} 15... Qxc3 {[%clk 0:02:57.5]} 16. bxc3 {[%clk 0:02:34.9]} 16... Bxg4
{[%clk 0:02:57.4]} 17. Bg2 {[%clk 0:02:30.3]} 17... Nxe4 {[%clk 0:02:57.3]} 18.
h6 {[%clk 0:02:26.7]} 18... Nxc3+ {[%clk 0:02:47.4]} 19. Kc1 {[%clk 0:02:26.6]}
19... Nxa2+ {[%clk 0:02:43.9]} 20. Kd2 {[%clk 0:02:24.9]} 20... Bf6 {[%clk
0:02:14.5]} 21. Ra1 {[%clk 0:02:23.5]} 21... Nc3 {[%clk 0:01:41]} 22. Rxa7
{[%clk 0:02:22.1]} 22... b5 {[%clk 0:01:37.6]} 23. Nh2 {[%clk 0:01:41.1]} 23...
Bf5 {[%clk 0:01:32.9]} 24. Rf1 {[%clk 0:01:32.1]} 24... Rc8 {[%clk 0:01:27.5]}
25. Ra8 {[%clk 0:01:16.3]} 25... Rxa8 {[%clk 0:01:20.4]} 26. Bxa8 {[%clk
0:01:16.2]} 26... e6 {[%clk 0:01:14.7]} 27. Nf3 {[%clk 0:01:05.8]} 27... Bh8
{[%clk 0:00:59]} 28. Bd4 {[%clk 0:00:57.2]} 28... Ne4+ {[%clk 0:00:45.6]} 29.
Ke3 {[%clk 0:00:57.3]} 29... Bxd4+ {[%clk 0:00:29.9]} 30. Nxd4 {[%clk 0:00:56]}
30... Nf6 {[%clk 0:00:26.5]} 31. Nxf5 {[%clk 0:00:54.5]} 31... exf5 {[%clk
0:00:27.2]} 32. Kd4 {[%clk 0:00:52.6]} 32... Ng4 {[%clk 0:00:26.6]} 33. Rb1
{[%clk 0:00:50.1]} 33... Nxh6 {[%clk 0:00:26.4]} 34. Rxb5 {[%clk 0:00:50.2]}
34... Kg7 {[%clk 0:00:25.5]} 35. Bd5 {[%clk 0:00:49.9]} 35... Ng4 {[%clk
0:00:22.1]} 36. Rb6 {[%clk 0:00:46.1]} 36... h5 {[%clk 0:00:21.5]} 37. Rxd6
{[%clk 0:00:45.8]} 37... h4 {[%clk 0:00:22.2]} 38. Rd7 {[%clk 0:00:45.9]} 38...
Nh6 {[%clk 0:00:22.3]} 39. c4 {[%clk 0:00:44.3]} 39... g5 {[%clk 0:00:19.2]} 40.
c5 {[%clk 0:00:44.1]} 40... g4 {[%clk 0:00:15.1]} 41. c6 {[%clk 0:00:44]} 41...
h3 {[%clk 0:00:15.5]} 42. c7 {[%clk 0:00:43.3]} 42... g3 {[%clk 0:00:16.4]} 43.
c8=Q {[%clk 0:00:29.6]} 43... g2 {[%clk 0:00:16.9]} 44. Qc1 {[%clk 0:00:28.5]}
44... Ng4 {[%clk 0:00:14.2]} 45. Qg5+ {[%clk 0:00:26.2]} 1-0

[Event "Late-Titled-Tuesday-Blitz-July-09-2024"]
[Site "Chess.com"]
[Date "2024.07.09"]
[Round "4"]
[White "vladislavkovalev"]
[Black "manitodeplomo"]
[Result "0-1"]
[WhiteElo "2870"]
[BlackElo "2625"]
[TimeControl "180+1"]
[EndTime "14:39:08 PDT"]
[Termination "manitodeplomo won by checkmate"]

1. e4 {[%clk 0:03:00.9]} 1... c5 {[%clk 0:02:55.7]} 2. Nf3 {[%clk 0:03:00.9]}
2... Nc6 {[%clk 0:02:56.1]} 3. Bb5 {[%clk 0:03:01.4]} 3... Na5 {[%clk
0:02:55.5]} 4. O-O {[%clk 0:02:56]} 4... a6 {[%clk 0:02:55.8]} 5. Be2 {[%clk
0:02:55.8]} 5... b5 {[%clk 0:02:56.6]} 6. d4 {[%clk 0:02:54.9]} 6... cxd4 {[%clk
0:02:56]} 7. Nxd4 {[%clk 0:02:55.8]} 7... Bb7 {[%clk 0:02:54.1]} 8. Re1 {[%clk
0:02:55.7]} 8... e6 {[%clk 0:02:51.8]} 9. a4 {[%clk 0:02:55.6]} 9... b4 {[%clk
0:02:50.6]} 10. Bf1 {[%clk 0:02:46.5]} 10... Nf6 {[%clk 0:02:43]} 11. e5 {[%clk
0:02:45.9]} 11... Nd5 {[%clk 0:02:42.9]} 12. Nd2 {[%clk 0:02:45.7]} 12... Be7
{[%clk 0:02:21.2]} 13. Ne4 {[%clk 0:02:44.7]} 13... O-O {[%clk 0:02:21.3]} 14.
Qg4 {[%clk 0:02:40.7]} 14... f5 {[%clk 0:02:16.9]} 15. exf6 {[%clk 0:02:41.1]}
15... Nxf6 {[%clk 0:02:16.7]} 16. Nxf6+ {[%clk 0:02:41.8]} 16... Bxf6 {[%clk
0:02:13.2]} 17. Bd3 {[%clk 0:02:32.8]} 17... Nc6 {[%clk 0:01:24.8]} 18. Nxc6
{[%clk 0:02:22.6]} 18... Bxc6 {[%clk 0:01:25.7]} 19. Qxb4 {[%clk 0:02:22]} 19...
Rb8 {[%clk 0:01:21.7]} 20. Qg4 {[%clk 0:02:16.8]} 20... a5 {[%clk 0:01:05]} 21.
Rb1 {[%clk 0:02:03.7]} 21... Rb4 {[%clk 0:01:01.8]} 22. c4 {[%clk 0:01:58.5]}
22... Bxa4 {[%clk 0:00:53.4]} 23. Bd2 {[%clk 0:01:47.7]} 23... Rxb2 {[%clk
0:00:48.7]} 24. Qh5 {[%clk 0:01:44.6]} 24... g6 {[%clk 0:00:34.6]} 25. Bxg6
{[%clk 0:01:44]} 25... hxg6 {[%clk 0:00:35.5]} 26. Qxg6+ {[%clk 0:01:44]} 26...
Kh8 {[%clk 0:00:35.3]} 27. Rxb2 {[%clk 0:01:42]} 27... Bxb2 {[%clk 0:00:34.8]}
28. Re3 {[%clk 0:01:40.2]} 28... Qh4 {[%clk 0:00:31.4]} 29. Rg3 {[%clk 0:01:25]}
29... Bd4 {[%clk 0:00:25.7]} 30. Be3 {[%clk 0:01:19.9]} 30... Be5 {[%clk
0:00:21]} 31. Bh6 {[%clk 0:01:12.9]} 31... Qd4 {[%clk 0:00:14.4]} 32. Bg7+
{[%clk 0:00:04.8]} 32... Bxg7 {[%clk 0:00:13.3]} 33. h4 {[%clk 0:00:05.7]} 33...
Qxf2+ {[%clk 0:00:11.5]} 34. Kh2 {[%clk 0:00:05.9]} 34... Qf6 {[%clk 0:00:11.5]}
35. Qh5+ {[%clk 0:00:06.1]} 35... Qh6 {[%clk 0:00:12.1]} 36. Qxa5 {[%clk
0:00:06.5]} 36... Bc6 {[%clk 0:00:08.1]} 37. Rg5 {[%clk 0:00:07]} 37... Rf4
{[%clk 0:00:07.5]} 38. Kg3 {[%clk 0:00:05.4]} 38... Qxh4# {[%clk 0:00:06.8]} 0-1

[Event "Late-Titled-Tuesday-Blitz-July-09-2024"]
[Site "Chess.com"]
[Date "2024.07.09"]
[Round "4"]
[White "Redzishchess"]
[Black "ZakinIlay2306"]
[Result "1-0"]
[WhiteElo "2473"]
[BlackElo "2306"]
[TimeControl "180+1"]
[EndTime "14:39:08 PDT"]
[Termination "Redzishchess won by resignation"]

1. d4 {[%clk 0:02:58.3]} 1... Nf6 {[%clk 0:02:59.5]} 2. c4 {[%clk 0:02:59]} 2...
c5 {[%clk 0:02:59.4]} 3. Nf3 {[%clk 0:02:59.7]} 3... cxd4 {[%clk 0:02:54.8]} 4.
Nxd4 {[%clk 0:03:00.6]} 4... g6 {[%clk 0:02:55.2]} 5. Nc3 {[%clk 0:02:59.9]}
5... Bg7 {[%clk 0:02:54.7]} 6. e4 {[%clk 0:03:00.5]} 6... Nc6 {[%clk 0:02:53.9]}
7. Be3 {[%clk 0:03:00.9]} 7... O-O {[%clk 0:02:51.8]} 8. Be2 {[%clk 0:03:01.3]}
8... d6 {[%clk 0:02:51.6]} 9. O-O {[%clk 0:03:01.1]} 9... Bd7 {[%clk 0:02:49.6]}
10. h3 {[%clk 0:02:46.3]} 10... Nxd4 {[%clk 0:02:45.3]} 11. Bxd4 {[%clk
0:02:45.4]} 11... Bc6 {[%clk 0:02:45.7]} 12. Qc2 {[%clk 0:02:42.1]} 12... a6
{[%clk 0:02:41.3]} 13. Rad1 {[%clk 0:02:42]} 13... Rc8 {[%clk 0:02:40.7]} 14. f4
{[%clk 0:02:31]} 14... Nd7 {[%clk 0:02:11.4]} 15. Bxg7 {[%clk 0:02:27.2]} 15...
Kxg7 {[%clk 0:02:12.3]} 16. Bf3 {[%clk 0:02:14.5]} 16... b5 {[%clk 0:02:05.3]}
17. cxb5 {[%clk 0:01:55.7]} 17... axb5 {[%clk 0:02:03.8]} 18. a3 {[%clk
0:01:55.5]} 18... Ba8 {[%clk 0:01:45.8]} 19. Kh2 {[%clk 0:01:47]} 19... Qc7
{[%clk 0:01:39.5]} 20. Qd3 {[%clk 0:01:38.2]} 20... b4 {[%clk 0:01:23.1]} 21.
axb4 {[%clk 0:01:39.1]} 21... d5 {[%clk 0:01:14]} 22. e5 {[%clk 0:01:33.7]}
22... e6 {[%clk 0:01:13.7]} 23. Nb5 {[%clk 0:01:21.8]} 23... Qc4 {[%clk
0:00:58.7]} 24. Nd6 {[%clk 0:00:37]} 24... Qxf4+ {[%clk 0:00:57.5]} 25. g3
{[%clk 0:00:37.4]} 25... Qxe5 {[%clk 0:00:57.9]} 26. Nxc8 {[%clk 0:00:36.8]}
26... Rxc8 {[%clk 0:00:57.2]} 27. Rf2 {[%clk 0:00:34.4]} 27... Qd6 {[%clk
0:00:52.1]} 28. b5 {[%clk 0:00:24.4]} 28... Ne5 {[%clk 0:00:50.1]} 29. Qa3
{[%clk 0:00:17.2]} 29... Nxf3+ {[%clk 0:00:44]} 30. Qxf3 {[%clk 0:00:18.1]}
30... Qe7 {[%clk 0:00:38.7]} 31. Qf4 {[%clk 0:00:14.6]} 31... e5 {[%clk
0:00:34.2]} 32. Qg4 {[%clk 0:00:14.8]} 32... Rd8 {[%clk 0:00:26.4]} 33. Rdf1
{[%clk 0:00:15]} 33... f5 {[%clk 0:00:23.5]} 34. Rxf5 {[%clk 0:00:14.1]} 34...
Kh8 {[%clk 0:00:16.2]} 35. Rf7 {[%clk 0:00:11.1]} 35... Qc5 {[%clk 0:00:15.8]}
36. Qh4 {[%clk 0:00:08.5]} 36... Qc2+ {[%clk 0:00:09.3]} 37. R1f2 {[%clk
0:00:08.7]} 37... Qxf2+ {[%clk 0:00:09]} 38. Rxf2 {[%clk 0:00:09.6]} 38... Re8
{[%clk 0:00:07.6]} 39. Qf6+ {[%clk 0:00:09.3]} 1-0

[Event "Late-Titled-Tuesday-Blitz-July-09-2024"]
[Site "Chess.com"]
[Date "2024.07.09"]
[Round "4"]
[White "AcostaPablo"]
[Black "BreatheChessAlways"]
[Result "1/2-1/2"]
[WhiteElo "2706"]
[BlackElo "2543"]
[TimeControl "180+1"]
[EndTime "14:39:10 PDT"]
[Termination "Game drawn by repetition"]

1. e4 {[%clk 0:03:00.9]} 1... c5 {[%clk 0:02:59.5]} 2. Nf3 {[%clk 0:03:01]} 2...
Nc6 {[%clk 0:02:58.7]} 3. Bb5 {[%clk 0:02:59.3]} 3... e6 {[%clk 0:02:57.2]} 4.
O-O {[%clk 0:02:58.5]} 4... Nge7 {[%clk 0:02:57.5]} 5. c3 {[%clk 0:02:58]} 5...
b6 {[%clk 0:02:56.9]} 6. d4 {[%clk 0:02:57]} 6... a6 {[%clk 0:02:41]} 7. Bxc6
{[%clk 0:02:53]} 7... Nxc6 {[%clk 0:02:33.8]} 8. d5 {[%clk 0:02:52.6]} 8... Ne7
{[%clk 0:02:32.7]} 9. Na3 {[%clk 0:02:27.1]} 9... Ng6 {[%clk 0:02:29.1]} 10. Nc4
{[%clk 0:02:16.1]} 10... d6 {[%clk 0:02:29.1]} 11. a4 {[%clk 0:02:13.4]} 11...
e5 {[%clk 0:02:28.2]} 12. Ne1 {[%clk 0:02:04.1]} 12... Be7 {[%clk 0:02:25.8]}
13. Nd3 {[%clk 0:02:04]} 13... O-O {[%clk 0:02:24.1]} 14. f4 {[%clk 0:02:04.1]}
14... exf4 {[%clk 0:02:22.3]} 15. Nxf4 {[%clk 0:02:04.5]} 15... Ne5 {[%clk
0:02:19.4]} 16. Ne3 {[%clk 0:01:57.3]} 16... Bg5 {[%clk 0:02:15.4]} 17. Qc2
{[%clk 0:01:33.1]} 17... a5 {[%clk 0:02:10.9]} 18. Bd2 {[%clk 0:01:32.6]} 18...
Ba6 {[%clk 0:02:07.2]} 19. c4 {[%clk 0:01:32.9]} 19... Re8 {[%clk 0:02:03.5]}
20. b3 {[%clk 0:01:33.2]} 20... Bc8 {[%clk 0:01:46.9]} 21. Rf2 {[%clk
0:01:30.9]} 21... Ng4 {[%clk 0:01:46.2]} 22. Nxg4 {[%clk 0:01:30]} 22... Bxg4
{[%clk 0:01:45.5]} 23. Raf1 {[%clk 0:01:30.6]} 23... Bf6 {[%clk 0:01:43.8]} 24.
h3 {[%clk 0:01:28.4]} 24... Bd7 {[%clk 0:01:41.8]} 25. Be3 {[%clk 0:01:28.5]}
25... Bh4 {[%clk 0:01:38.3]} 26. Rf3 {[%clk 0:01:28.5]} 26... Qe7 {[%clk
0:01:35.2]} 27. Nh5 {[%clk 0:01:19.7]} 27... f6 {[%clk 0:01:30.3]} 28. g3 {[%clk
0:01:17.2]} 28... Qe5 {[%clk 0:01:28]} 29. Nxg7 {[%clk 0:01:10]} 29... Qxe4
{[%clk 0:01:23.5]} 30. Qxe4 {[%clk 0:01:05.4]} 30... Rxe4 {[%clk 0:01:24.4]} 31.
Nh5 {[%clk 0:01:01.5]} 31... Be8 {[%clk 0:01:22.6]} 32. Nf4 {[%clk 0:00:50.5]}
32... Bg5 {[%clk 0:01:20.1]} 33. h4 {[%clk 0:00:50.8]} 33... Bh6 {[%clk
0:01:18.4]} 34. Ng2 {[%clk 0:00:50.1]} 34... Bg7 {[%clk 0:01:15]} 35. Bf4 {[%clk
0:00:49.5]} 35... Bh5 {[%clk 0:01:12.9]} 36. Re3 {[%clk 0:00:49.8]} 36... Rxe3
{[%clk 0:01:06.2]} 37. Nxe3 {[%clk 0:00:50.7]} 37... Re8 {[%clk 0:01:05.9]} 38.
Nf5 {[%clk 0:00:48.9]} 38... Re2 {[%clk 0:01:02.4]} 39. Bxd6 {[%clk 0:00:48.9]}
39... Rb2 {[%clk 0:00:58.2]} 40. Be7 {[%clk 0:00:48.9]} 40... Rxb3 {[%clk
0:00:57.1]} 41. d6 {[%clk 0:00:49.5]} 41... Be8 {[%clk 0:00:48.1]} 42. Nxg7
{[%clk 0:00:35.3]} 42... Rxg3+ {[%clk 0:00:47.1]} 43. Kf2 {[%clk 0:00:36]} 43...
Rxg7 {[%clk 0:00:45.9]} 44. Rb1 {[%clk 0:00:36.7]} 44... Bxa4 {[%clk 0:00:41.1]}
45. Rxb6 {[%clk 0:00:36.4]} 45... Kf7 {[%clk 0:00:39.7]} 46. Ra6 {[%clk
0:00:34.7]} 46... Rg4 {[%clk 0:00:37.5]} 47. Rxa5 {[%clk 0:00:34.7]} 47... Rxc4
{[%clk 0:00:36.5]} 48. Ra7 {[%clk 0:00:33.2]} 48... Rxh4 {[%clk 0:00:31.7]} 49.
Rc7 {[%clk 0:00:28.6]} 49... c4 {[%clk 0:00:29.7]} 50. Kg3 {[%clk 0:00:20.2]}
50... Rd4 {[%clk 0:00:26.8]} 51. Kf3 {[%clk 0:00:20.3]} 51... Rh4 {[%clk
0:00:26.1]} 52. Kg3 {[%clk 0:00:20.5]} 52... Rd4 {[%clk 0:00:26.1]} 53. Kf3
{[%clk 0:00:21]} 53... Rh4 {[%clk 0:00:26.3]} 54. Kg3 {[%clk 0:00:21.1]} 1/2-1/2

[Event "Late-Titled-Tuesday-Blitz-July-09-2024"]
[Site "Chess.com"]
[Date "2024.07.09"]
[Round "4"]
[White "maurovargas01"]
[Black "talaicito"]
[Result "0-1"]
[WhiteElo "1941"]
[BlackElo "2313"]
[TimeControl "180+1"]
[EndTime "14:39:10 PDT"]
[Termination "talaicito won on time"]

1. e4 {[%clk 0:03:00.2]} 1... c5 {[%clk 0:02:59.8]} 2. Nc3 {[%clk 0:02:58.7]}
2... Nc6 {[%clk 0:02:56.8]} 3. f4 {[%clk 0:02:58.7]} 3... e6 {[%clk 0:02:54.5]}
4. Nf3 {[%clk 0:02:59.5]} 4... d5 {[%clk 0:02:54.5]} 5. e5 {[%clk 0:02:59.1]}
5... d4 {[%clk 0:02:52.8]} 6. Ne4 {[%clk 0:02:56.5]} 6... a6 {[%clk 0:02:53.2]}
7. d3 {[%clk 0:02:55.5]} 7... Nh6 {[%clk 0:02:49.2]} 8. h3 {[%clk 0:02:54.2]}
8... Nf5 {[%clk 0:02:46]} 9. g4 {[%clk 0:02:52.3]} 9... Nh4 {[%clk 0:02:45.4]}
10. g5 {[%clk 0:02:48.7]} 10... Nf5 {[%clk 0:02:41.6]} 11. Bg2 {[%clk
0:02:47.2]} 11... Qc7 {[%clk 0:02:35.5]} 12. O-O {[%clk 0:02:46.5]} 12... h6
{[%clk 0:02:34.9]} 13. g6 {[%clk 0:02:44.8]} 13... fxg6 {[%clk 0:02:34.4]} 14.
a3 {[%clk 0:02:39.4]} 14... Bd7 {[%clk 0:02:27.3]} 15. Bd2 {[%clk 0:02:33.3]}
15... a5 {[%clk 0:02:25.4]} 16. Rb1 {[%clk 0:02:28]} 16... Be7 {[%clk
0:02:20.2]} 17. Qe1 {[%clk 0:02:22.5]} 17... O-O {[%clk 0:02:18.8]} 18. Kh2
{[%clk 0:01:46.9]} 18... a4 {[%clk 0:02:09.8]} 19. h4 {[%clk 0:01:41.8]} 19...
Kh7 {[%clk 0:01:56.7]} 20. Bh3 {[%clk 0:01:39]} 20... b5 {[%clk 0:01:51.5]} 21.
Rg1 {[%clk 0:01:38.2]} 21... Rg8 {[%clk 0:01:30.8]} 22. Qf2 {[%clk 0:01:35.5]}
22... Be8 {[%clk 0:01:25]} 23. Qg2 {[%clk 0:01:29.8]} 23... Rd8 {[%clk
0:01:13.6]} 24. Bxf5 {[%clk 0:01:11]} 24... gxf5 {[%clk 0:01:11]} 25. Neg5+
{[%clk 0:01:06.8]} 25... hxg5 {[%clk 0:01:03.5]} 26. Nxg5+ {[%clk 0:00:50.2]}
26... Bxg5 {[%clk 0:01:02.9]} 27. hxg5 {[%clk 0:00:44]} 27... g6 {[%clk
0:00:53.7]} 28. Kg3 {[%clk 0:00:42.2]} 28... Kg7 {[%clk 0:00:42.6]} 29. Rh1
{[%clk 0:00:38]} 29... Rd7 {[%clk 0:00:36.6]} 30. Qh3 {[%clk 0:00:35.4]} 30...
Kf8 {[%clk 0:00:34.5]} 31. Qh6+ {[%clk 0:00:20.7]} 31... Rdg7 {[%clk 0:00:34.8]}
32. b4 {[%clk 0:00:19]} 32... Ne7 {[%clk 0:00:28.1]} 33. bxc5 {[%clk 0:00:16.7]}
33... Qxc5 {[%clk 0:00:27]} 34. Bb4 {[%clk 0:00:13.4]} 34... Qxc2 {[%clk
0:00:25.8]} 35. Rhd1 {[%clk 0:00:06.2]} 35... Qe2 {[%clk 0:00:16.1]} 36. Rbc1
{[%clk 0:00:01.9]} 36... Qg4+ {[%clk 0:00:15.6]} 0-1

[Event "Late-Titled-Tuesday-Blitz-July-09-2024"]
[Site "Chess.com"]
[Date "2024.07.09"]
[Round "4"]
[White "Horokoskii"]
[Black "ArchibaldCerveza29"]
[Result "1-0"]
[WhiteElo "2129"]
[BlackElo "2409"]
[TimeControl "180+1"]
[EndTime "14:39:14 PDT"]
[Termination "Horokoskii won by resignation"]

1. c4 {[%clk 0:03:00.9]} 1... g6 {[%clk 0:02:59.4]} 2. Nc3 {[%clk 0:03:00.3]}
2... Nf6 {[%clk 0:02:59.1]} 3. g3 {[%clk 0:02:59.3]} 3... c5 {[%clk 0:02:59.1]}
4. Bg2 {[%clk 0:02:59.5]} 4... Bg7 {[%clk 0:02:57.6]} 5. e3 {[%clk 0:02:59.8]}
5... d6 {[%clk 0:02:37.5]} 6. Nge2 {[%clk 0:02:59.8]} 6... O-O {[%clk 0:02:36]}
7. O-O {[%clk 0:02:59.7]} 7... Nc6 {[%clk 0:02:33.6]} 8. b3 {[%clk 0:02:54.2]}
8... a6 {[%clk 0:02:29.8]} 9. Bb2 {[%clk 0:02:53.8]} 9... Rb8 {[%clk 0:02:28.8]}
10. d3 {[%clk 0:02:44.9]} 10... Bd7 {[%clk 0:02:26.4]} 11. a4 {[%clk 0:02:24.4]}
11... Nb4 {[%clk 0:02:13.8]} 12. Na2 {[%clk 0:02:05.9]} 12... Nxa2 {[%clk
0:02:01.3]} 13. Rxa2 {[%clk 0:02:06.8]} 13... b5 {[%clk 0:02:02.2]} 14. axb5
{[%clk 0:02:05.9]} 14... axb5 {[%clk 0:02:03.1]} 15. Qc2 {[%clk 0:02:01.8]}
15... Qc7 {[%clk 0:01:59.7]} 16. Rfa1 {[%clk 0:01:59.4]} 16... Bc6 {[%clk
0:01:56.2]} 17. Nf4 {[%clk 0:01:55.1]} 17... bxc4 {[%clk 0:01:52.3]} 18. bxc4
{[%clk 0:01:52.8]} 18... Bxg2 {[%clk 0:01:21.5]} 19. Kxg2 {[%clk 0:01:52.2]}
19... Qb7+ {[%clk 0:01:22.4]} 20. Kg1 {[%clk 0:01:50.5]} 20... Qb3 {[%clk
0:01:10.9]} 21. Qe2 {[%clk 0:01:41.4]} 21... Rfd8 {[%clk 0:01:02.2]} 22. h4
{[%clk 0:01:40]} 22... d5 {[%clk 0:00:57.7]} 23. cxd5 {[%clk 0:01:26.7]} 23...
Nxd5 {[%clk 0:00:57.4]} 24. Nxd5 {[%clk 0:01:24.9]} 24... Rxd5 {[%clk
0:00:54.8]} 25. Bxg7 {[%clk 0:01:24]} 25... Kxg7 {[%clk 0:00:54.5]} 26. Rd2
{[%clk 0:01:17]} 26... Rbd8 {[%clk 0:00:50.7]} 27. Rad1 {[%clk 0:01:14.2]} 27...
Qc3 {[%clk 0:00:46.6]} 28. Rc2 {[%clk 0:01:14.5]} 28... Qa5 {[%clk 0:00:43.9]}
29. Rdc1 {[%clk 0:01:10.3]} 29... Rxd3 {[%clk 0:00:20.4]} 30. Rxc5 {[%clk
0:01:09.4]} 30... Rd1+ {[%clk 0:00:20.4]} 31. Rxd1 {[%clk 0:01:08.7]} 31...
Rxd1+ {[%clk 0:00:20.2]} 32. Qxd1 {[%clk 0:01:08.3]} 32... Qxc5 {[%clk
0:00:20.8]} 33. Qa1+ {[%clk 0:01:08.1]} 33... f6 {[%clk 0:00:19.7]} 34. Qd1
{[%clk 0:01:07.3]} 34... h5 {[%clk 0:00:19.2]} 35. Qf3 {[%clk 0:01:06.3]} 35...
Qc1+ {[%clk 0:00:19]} 36. Kg2 {[%clk 0:01:06.5]} 36... Qc5 {[%clk 0:00:19.4]}
37. Qb7 {[%clk 0:01:06.2]} 37... Qd6 {[%clk 0:00:18.9]} 38. Qf3 {[%clk
0:01:06.2]} 38... Qe5 {[%clk 0:00:18.7]} 39. Qb7 {[%clk 0:01:06.5]} 39... Kh6
{[%clk 0:00:18.1]} 40. Qa8 {[%clk 0:01:03.5]} 40... Kg7 {[%clk 0:00:17.4]} 41.
Qf3 {[%clk 0:01:02.7]} 41... Qd6 {[%clk 0:00:15.7]} 42. Qa8 {[%clk 0:01:01.6]}
42... g5 {[%clk 0:00:15.9]} 43. hxg5 {[%clk 0:00:59.8]} 43... fxg5 {[%clk
0:00:16.8]} 44. Qa1+ {[%clk 0:00:56.3]} 44... Kh7 {[%clk 0:00:15.5]} 45. Qb1+
{[%clk 0:00:55.8]} 45... Kh6 {[%clk 0:00:15.7]} 46. Qe4 {[%clk 0:00:53.4]} 46...
Qf6 {[%clk 0:00:15.1]} 47. Qa8 {[%clk 0:00:46.6]} 47... h4 {[%clk 0:00:14.4]}
48. gxh4 {[%clk 0:00:45.8]} 48... gxh4 {[%clk 0:00:15.3]} 49. Qf3 {[%clk
0:00:45]} 49... Qg5+ {[%clk 0:00:11.7]} 50. Kh3 {[%clk 0:00:44.5]} 50... e5
{[%clk 0:00:09.2]} 51. Qg4 {[%clk 0:00:40.7]} 51... Qxg4+ {[%clk 0:00:01.7]} 52.
Kxg4 {[%clk 0:00:40.5]} 52... Kg6 {[%clk 0:00:02.1]} 53. Kxh4 {[%clk 0:00:40.4]}
53... e4 {[%clk 0:00:03]} 54. Kg4 {[%clk 0:00:40.6]} 1-0

[Event "Late-Titled-Tuesday-Blitz-July-09-2024"]
[Site "Chess.com"]
[Date "2024.07.09"]
[Round "4"]
[White "Hikaru"]
[Black "KaydenTroffChess"]
[Result "1-0"]
[WhiteElo "3215"]
[BlackElo "2883"]
[TimeControl "180+1"]
[EndTime "14:39:15 PDT"]
[Termination "Hikaru won by checkmate"]

1. e4 {[%clk 0:03:00.9]} 1... c5 {[%clk 0:02:58.8]} 2. d4 {[%clk 0:02:58.3]}
2... cxd4 {[%clk 0:02:58.1]} 3. c3 {[%clk 0:02:59]} 3... d3 {[%clk 0:02:58.7]}
4. Bxd3 {[%clk 0:02:59]} 4... g6 {[%clk 0:02:58.9]} 5. c4 {[%clk 0:02:59.7]}
5... Bg7 {[%clk 0:02:59.4]} 6. Nf3 {[%clk 0:03:00.6]} 6... Nc6 {[%clk
0:02:59.8]} 7. O-O {[%clk 0:03:01.3]} 7... d6 {[%clk 0:02:59.7]} 8. Nc3 {[%clk
0:03:02]} 8... Bg4 {[%clk 0:02:59]} 9. Nd5 {[%clk 0:02:54.9]} 9... Nf6 {[%clk
0:02:57.1]} 10. h3 {[%clk 0:02:46.5]} 10... Bxf3 {[%clk 0:02:55.1]} 11. Qxf3
{[%clk 0:02:47.4]} 11... Ne5 {[%clk 0:02:46.3]} 12. Qe2 {[%clk 0:02:46.1]} 12...
Nxd3 {[%clk 0:02:46.3]} 13. Qxd3 {[%clk 0:02:45.9]} 13... O-O {[%clk 0:02:46.5]}
14. Bg5 {[%clk 0:02:42.4]} 14... e6 {[%clk 0:02:22.6]} 15. Nc3 {[%clk
0:02:32.9]} 15... Qb6 {[%clk 0:02:15.6]} 16. b3 {[%clk 0:02:29.3]} 16... Nd7
{[%clk 0:01:50]} 17. Rac1 {[%clk 0:02:28.2]} 17... Nc5 {[%clk 0:01:44.7]} 18.
Qe2 {[%clk 0:02:28.2]} 18... h6 {[%clk 0:01:40.7]} 19. Bf4 {[%clk 0:02:21]}
19... Rfd8 {[%clk 0:01:35.5]} 20. Rfd1 {[%clk 0:02:19.2]} 20... Qc6 {[%clk
0:01:28.9]} 21. f3 {[%clk 0:02:13.4]} 21... a6 {[%clk 0:01:27.2]} 22. b4 {[%clk
0:01:39.5]} 22... g5 {[%clk 0:01:05.9]} 23. Bg3 {[%clk 0:01:35.8]} 23... Kh8
{[%clk 0:00:43.9]} 24. bxc5 {[%clk 0:01:31.5]} 24... dxc5 {[%clk 0:00:32.8]} 25.
e5 {[%clk 0:01:29.5]} 25... b5 {[%clk 0:00:30.7]} 26. cxb5 {[%clk 0:01:28.4]}
26... axb5 {[%clk 0:00:31.6]} 27. Qxb5 {[%clk 0:01:28.5]} 27... Rxd1+ {[%clk
0:00:31]} 28. Rxd1 {[%clk 0:01:29.4]} 28... Qxb5 {[%clk 0:00:31.4]} 29. Nxb5
{[%clk 0:01:30.3]} 29... Rxa2 {[%clk 0:00:31.5]} 30. Rd7 {[%clk 0:01:29]} 30...
Kg8 {[%clk 0:00:30.3]} 31. Nd6 {[%clk 0:01:28.8]} 31... h5 {[%clk 0:00:27.8]}
32. h4 {[%clk 0:01:23.5]} 32... gxh4 {[%clk 0:00:26.7]} 33. Bf4 {[%clk
0:01:18.1]} 33... Ra4 {[%clk 0:00:26]} 34. Ne4 {[%clk 0:01:11.8]} 34... c4
{[%clk 0:00:20.5]} 35. Rc7 {[%clk 0:01:06.8]} 35... Ra1+ {[%clk 0:00:19.5]} 36.
Kh2 {[%clk 0:01:06.7]} 36... h3 {[%clk 0:00:17.7]} 37. Kxh3 {[%clk 0:01:00.7]}
37... Rh1+ {[%clk 0:00:10.9]} 38. Kg3 {[%clk 0:01:00.8]} 38... Bf8 {[%clk
0:00:10.9]} 39. Bg5 {[%clk 0:00:57.8]} 39... Kg7 {[%clk 0:00:10.7]} 40. Rxc4
{[%clk 0:00:52]} 40... Kg6 {[%clk 0:00:10.9]} 41. Bf6 {[%clk 0:00:51.6]} 41...
Kf5 {[%clk 0:00:09.6]} 42. Nd6+ {[%clk 0:00:49.2]} 42... Kg6 {[%clk 0:00:06.3]}
43. Rc8 {[%clk 0:00:47.7]} 43... Bh6 {[%clk 0:00:02.9]} 44. Rg8+ {[%clk
0:00:41.8]} 44... Kh7 {[%clk 0:00:03]} 45. Rh8+ {[%clk 0:00:41.4]} 45... Kg6
{[%clk 0:00:03.9]} 46. Nxf7 {[%clk 0:00:28.8]} 46... Bd2 {[%clk 0:00:04.3]} 47.
Nd6 {[%clk 0:00:21.7]} 47... Be1+ {[%clk 0:00:04.2]} 48. Kf4 {[%clk 0:00:22.1]}
48... Bd2+ {[%clk 0:00:04.9]} 49. Ke4 {[%clk 0:00:22.7]} 49... Re1+ {[%clk
0:00:05.4]} 50. Kd3 {[%clk 0:00:23.1]} 50... Bb4 {[%clk 0:00:05.4]} 51. Rg8+
{[%clk 0:00:23.1]} 51... Kh7 {[%clk 0:00:05.9]} 52. Rg7+ {[%clk 0:00:23.6]}
52... Kh6 {[%clk 0:00:06.5]} 53. Nf7# {[%clk 0:00:24.5]} 1-0